fUST/lending_fUST_20240630
["ID","MTS","AMOUNT","RATE_DAILY","PERIOD"]
[330677891,1719703847898,-500.0,0.00016598,2]
[330677892,1719703847914,-500.0,0.00016598,2]
[330677893,1719703847929,-500.0,0.00016599,2]
[330677894,1719703847943,-685.97,0.00016599,2]
[330677895,1719703847956,-685.97,0.00016599,2]
[330677896,1719703847972,-685.97,0.00016599,2]
[330677897,1719703847986,-685.97,0.00016599,2]
[330677898,1719703848001,-3828.21400415,0.000166,7]
[330677899,1719703848016,-500.0,0.000166,2]
[330677900,1719703848030,-500.0,0.000166,2]
[330677901,1719703848045,-298.43466753,0.000166,2]
[330677902,1719703848059,-501.48110291,0.000166,2]
[330677903,1719703848074,-500.0,0.000166,2]
[330677904,1719703848089,-500.0,0.000166,2]
[330677905,1719703848103,-500.0,0.000166,2]
[330677906,1719703848119,-500.0,0.000166,2]
[330677907,1719703848134,-500.0,0.000166,2]
[330677908,1719703848144,-500.0,0.000166,2]
[330677909,1719703848154,-502.05521604,0.000166,2]
[330677910,1719703848164,-883.18,0.000166,2]
[330677911,1719703848174,-500.0,0.000166,2]
[330677912,1719703848185,-500.0,0.000166,2]
[330677913,1719703848195,-500.0,0.000166,2]
[330677914,1719703848354,-500.0,0.000166,2]
[330677915,1719703848379,-540.46,0.000166,2]
[330677916,1719703848389,-500.0,0.000166,2]
[330677917,1719703848399,-500.0,0.000166,2]
[330677918,1719703848409,-633.55442687,0.000166,2]
[330677919,1719703848418,-501.86545941,0.000166,2]
[330677920,1719703848428,-527.89208856,0.000166,2]
[330677921,1719703848437,-1829.83,0.000166,2]
[330677922,1719703848447,-396.75492209,0.000166,2]
[330677923,1719703848457,-500.0,0.000166,2]
[330677924,1719703848466,-500.0,0.000166,2]
[330677925,1719703848476,-500.0,0.000166,2]
[330677926,1719703848485,-500.0,0.000166,2]
[330677927,1719703848495,-909.66,0.000166,2]
[330677928,1719703848504,-1656.04,0.000166,2]
[330677929,1719703848514,-503.74908951,0.000166,2]
[330677930,1719703848523,-500.0,0.000166,2]
[330677931,1719703848532,-531.92123668,0.000166,2]
[330677932,1719703848542,-500.0,0.000166,2]
[330677933,1719703848551,-503.80774334,0.000166,2]
[330677934,1719703848561,-502.77777337,0.000166,2]
[330677935,1719703848571,-500.0,0.000166,2]
[330677936,1719703848580,-500.0,0.000166,2]
[330677937,1719703848589,-500.0,0.000166,2]
[330677938,1719703848598,-500.0,0.000166,2]
[330677939,1719703848607,-500.0,0.000166,2]
[330677940,1719703848618,-500.0,0.000166,2]
[330677941,1719703848629,-500.0,0.000166,2]
[330677942,1719703848639,-500.0,0.000166,2]
[330677943,1719703848648,-500.0,0.000166,2]
[330677944,1719703848659,-502.17500822,0.000166,2]
[330677945,1719703848668,-500.0,0.000166,2]
[330677946,1719703848678,-339.79054982,0.000166,2]
[330677947,1719703848687,-501.4466836,0.000166,2]
[330677948,1719703848699,-501.89677971,0.000166,2]
[330677949,1719703848709,-232.82306914,0.000166,2]
[330677950,1719703848719,-1000.0,0.000166,2]
[330677951,1719703848729,-500.0,0.000166,2]
[330677952,1719703848738,-500.0,0.000166,2]
[330677953,1719703848748,-500.0,0.000166,2]
[330677954,1719703848758,-500.0,0.000166,2]
[330677955,1719703848768,-630.341898,0.000166,2]
[330677956,1719703848777,-500.0,0.000166,2]
[330677957,1719703848788,-500.0,0.000166,2]
[330677958,1719703848797,-500.0,0.000166,2]
[330677959,1719703848807,-500.0,0.000166,2]
[330677960,1719703848816,-500.0,0.000166,2]
[330677961,1719703848826,-507.0380402,0.000166,2]
[330677962,1719703848836,-500.0,0.000166,2]
[330677963,1719703848846,-500.0,0.000166,2]
[330677964,1719703848855,-500.0,0.000166,2]
[330677965,1719703848865,-500.0,0.000166,2]
[330677966,1719703848875,-608.73,0.000166,2]
[330677967,1719703848884,-500.0,0.000166,2]
[330677968,1719703848894,-500.0,0.000166,2]
[330677969,1719703848903,-501.82232809,0.000166,2]
[330677970,1719703848913,-195.20840035,0.000166,2]
[330677971,1719703848922,-521.59,0.000166,2]
[330677972,1719703848932,-500.0,0.000166,2]
[330677973,1719703848941,-500.0,0.000166,2]
[330677974,1719703848950,-753.7,0.000166,2]
[330677975,1719703848960,-500.0,0.000166,2]
[330677976,1719703848971,-500.0,0.000166,2]
[330677977,1719703848980,-500.89298118,0.000166,2]
[330677978,1719703848990,-500.0,0.000166,2]
[330677979,1719703849000,-543.28,0.000166,2]
[330677980,1719703849009,-500.0,0.000166,2]
[330677981,1719703849019,-500.0,0.000166,2]
[330677982,1719703849028,-500.0,0.000166,2]
[330677983,1719703849038,-500.0,0.000166,2]
[330677984,1719703849047,-500.0,0.000166,2]
[330677985,1719703849056,-500.0,0.000166,2]
[330677986,1719703849066,-500.0,0.000166,2]
[330677987,1719703849075,-500.0,0.000166,2]
[330677988,1719703849085,-500.0,0.000166,2]
[330677989,1719703849095,-766.87,0.000166,2]
[330677990,1719703849104,-500.0,0.000166,2]
[330677991,1719703849114,-500.0,0.000166,2]
[330677992,1719703849123,-500.0,0.000166,2]
[330677993,1719703849133,-500.0,0.000166,2]
[330677994,1719703849142,-500.0,0.000166,2]
[330677995,1719703849151,-500.0,0.000166,2]
[330677996,1719703849160,-509.17,0.000166,2]
[330677997,1719703849170,-478.79453528,0.000166,2]
[330677998,1719703849180,-500.0,0.000166,2]
[330677999,1719703849189,-500.0,0.000166,2]
[330678000,1719703849198,-500.0,0.000166,2]
[330678001,1719703849207,-500.0,0.000166,2]
[330678002,1719703849217,-500.0,0.000166,2]
[330678003,1719703849227,-500.0,0.000166,2]
[330678004,1719703849235,-503.41226062,0.000166,2]
[330678005,1719703849245,-500.0,0.000166,2]
[330678006,1719703849254,-500.0,0.000166,2]
[330678007,1719703849264,-500.0,0.000166,2]
[330678008,1719703849274,-665.69,0.000166,2]
[330678009,1719703849283,-500.0,0.000166,2]
[330678010,1719703849293,-500.0,0.000166,2]
[330678011,1719703849302,-500.0,0.000166,2]
[330678012,1719703849312,-500.0,0.000166,2]
[330678013,1719703849321,-543.30095194,0.000166,2]
[330678014,1719703849331,-734.23,0.000166,2]
[330678015,1719703849341,-500.0,0.000166,2]
[330678016,1719703849350,-500.0,0.000166,2]
[330678017,1719703849361,-501.82,0.000166,2]
[330678018,1719703849371,-500.0,0.000166,2]
[330678019,1719703849381,-503.14885768,0.000166,2]
[330678020,1719703849390,-151.0,0.000166,2]
[330678021,1719703849399,-151.0,0.000166,2]
[330678022,1719703849410,-500.0,0.000166,2]
[330678023,1719703849421,-450.02226167,0.000166,2]
[330678024,1719703849431,-151.0,0.000166,2]
[330678025,1719703849440,-151.0,0.000166,2]
[330678026,1719703849450,-530.00970841,0.000166,2]
[330678027,1719703849460,-500.0,0.000166,2]
[330678028,1719703849469,-500.0,0.000166,2]
[330678029,1719703849479,-500.0,0.000166,2]
[330678030,1719703849489,-500.0,0.000166,2]
[330678031,1719703849499,-500.0,0.000166,2]
[330678032,1719703849508,-500.0,0.000166,2]
[330678033,1719703849518,-1332.42,0.000166,2]
[330678034,1719703849528,-504.17989085,0.000166,2]
[330678035,1719703849538,-500.0,0.000166,2]
[330678036,1719703849548,-500.0,0.000166,2]
[330678037,1719703849558,-510.95,0.000166,2]
[330678038,1719703849567,-500.0,0.000166,2]
[330678039,1719703849577,-500.0,0.000166,2]
[330678040,1719703849586,-500.0,0.000166,2]
[330678041,1719703849596,-500.0,0.000166,2]
[330678042,1719703849606,-500.0,0.000166,2]
[330678043,1719703849617,-158.37959125,0.000166,2]
[330678044,1719703849629,-500.0,0.000166,2]
[330678045,1719703849638,-500.0,0.000166,2]
[330678046,1719703849648,-503.90909712,0.000166,2]
[330678047,1719703849657,-699.09,0.000166,2]
[330678048,1719703849670,-151.0,0.000166,2]
[330678049,1719703849680,-500.0,0.000166,2]
[330678050,1719703849690,-154.81422293,0.000166,2]
[330678051,1719703849701,-500.0,0.000166,2]
[330678052,1719703849712,-504.44198053,0.000166,2]
[330678053,1719703849721,-512.9,0.000166,2]
[330678054,1719703849731,-500.0,0.000166,2]
[330678055,1719703849740,-501.54494569,0.000166,2]
[330678056,1719703849750,-500.0,0.000166,2]
[330678057,1719703849759,-500.0,0.000166,2]
[330678058,1719703849769,-500.0,0.000166,2]
[330678059,1719703849779,-500.0,0.000166,2]
[330678060,1719703849789,-1004.5,0.000166,2]
[330678061,1719703849798,-500.0,0.000166,2]
[330678062,1719703849808,-500.0,0.000166,2]
[330678063,1719703849818,-500.0,0.000166,2]
[330678064,1719703849827,-433.03104651,0.000166,2]
[330678065,1719703849838,-694.04,0.000166,2]
[330678066,1719703849846,-500.0,0.000166,2]
[330678067,1719703849856,-500.0,0.000166,2]
[330678068,1719703849866,-500.0,0.000166,2]
[330678069,1719703849876,-1754.78,0.000166,2]
[330678070,1719703849886,-500.0,0.000166,2]
[330678071,1719703849895,-500.0,0.000166,2]
[330678072,1719703849905,-500.0,0.000166,2]
[330678073,1719703849915,-500.0,0.000166,2]
[330678074,1719703849925,-500.0,0.000166,2]
[330678075,1719703849934,-500.0,0.000166,2]
[330678076,1719703849943,-620.10922562,0.000166,2]
[330678077,1719703849952,-500.0,0.000166,2]
[330678078,1719703849963,-500.0,0.000166,2]
[330678079,1719703849972,-500.0,0.000166,2]
[330678080,1719703849981,-261.8330909,0.000166,2]
[330678081,1719703849991,-501.70025537,0.000166,2]
[330678082,1719703850000,-500.0,0.000166,2]
[330678083,1719703850010,-151.0,0.000166,2]
[330678084,1719703850019,-500.0,0.000166,2]
[330678085,1719703850029,-151.0,0.000166,2]
[330678086,1719703850039,-505.19475979,0.000166,2]
[330678087,1719703850049,-500.0,0.000166,2]
[330678088,1719703850059,-877.95,0.000166,2]
[330678089,1719703850069,-500.0,0.000166,2]
[330678090,1719703850078,-502.94616136,0.000166,2]
[330678091,1719703850088,-502.62554742,0.000166,2]
[330678092,1719703850097,-500.0,0.000166,2]
[330678093,1719703850106,-500.0,0.000166,2]
[330678094,1719703850116,-535.78,0.000166,2]
[330678095,1719703850126,-500.0,0.000166,2]
[330678096,1719703850136,-521.56,0.000166,2]
[330678097,1719703850145,-500.0,0.000166,2]
[330678098,1719703850155,-502.02692124,0.000166,2]
[330678099,1719703850165,-505.60004831,0.000166,2]
[330678100,1719703850174,-500.0,0.000166,2]
[330678101,1719703850186,-500.0,0.000166,2]
[330678102,1719703850198,-685.97,0.000166,2]
[330678103,1719703850208,-1004.98,0.000166,2]
[330678104,1719703850217,-500.0,0.000166,2]
[330678105,1719703850227,-504.8467975,0.000166,2]
[330678106,1719703850237,-500.0,0.000166,2]
[330678107,1719703850246,-306.0,0.000166,2]
[330678108,1719703850256,-3091.85,0.000166,2]
[330678109,1719703850265,-787.04,0.00016601,2]
[330678110,1719703850276,-19913.71,0.00016601,2]
[330678111,1719703850285,-500.0,0.00016601,2]
[330678112,1719703850295,-1552.47,0.00016601,2]
[330678113,1719703850305,-3628.01,0.00016601,2]
[330678114,1719703850315,-500.0,0.00016601,2]
[330678115,1719703850324,-500.0,0.00016601,2]
[330678116,1719703850334,-500.0,0.00016601,2]
[330678117,1719703850343,-2022.27,0.00016601,2]
[330678118,1719703850354,-500.0,0.00016601,2]
[330678119,1719703850364,-500.0,0.00016601,2]
[330678120,1719703850374,-1430.69,0.00016601,2]
[330678121,1719703850384,-500.0,0.00016601,2]
[330678122,1719703850394,-2617.99,0.00016601,2]
[330678123,1719703850404,-499.24199418,0.00016601,2]
[330678124,1719703850414,-593.06,0.00016601,2]
[330678125,1719703850522,-691.21,0.00016601,2]
[330678126,1719703850534,-500.0,0.00016601,2]
[330678127,1719703850544,-592.76,0.00016601,2]
[330678128,1719703850553,-151.0,0.00016601,2]
[330678129,1719703850562,-151.0,0.00016601,2]
[330678130,1719703850572,-500.0,0.00016601,2]
[330678131,1719703850581,-500.0,0.00016601,2]
[330678132,1719703850591,-206.09294144,0.00016601,2]
[330678133,1719703850601,-603.89,0.00016601,2]
[330678134,1719703850610,-500.0,0.00016601,2]
[330678135,1719703850625,-685.97,0.00016601,2]
[330678136,1719703850635,-500.0,0.00016602,2]
[330678137,1719703850644,-500.0,0.00016602,2]
[330678138,1719703850654,-500.0,0.00016602,2]
[330678139,1719703850666,-500.0,0.00016602,2]
[330678140,1719703850675,-500.0,0.00016602,2]
[330678141,1719703850685,-504.59226242,0.00016602,2]
[330678142,1719703850696,-500.0,0.00016602,2]
[330678143,1719703850706,-500.0,0.00016602,2]
[330678144,1719703850715,-625.86,0.00016602,2]
[330678145,1719703850724,-1121.09,0.00016602,2]
[330678146,1719703850734,-500.0,0.00016602,2]
[330678147,1719703850743,-2176.43,0.00016602,2]
[330678148,1719703850753,-502.92061456,0.00016602,2]
[330678149,1719703850762,-868.25,0.00016602,2]
[330678150,1719703850771,-915.82,0.00016602,2]
[330678151,1719703850781,-2706.06,0.00016602,2]
[330678152,1719703850792,-500.0,0.00016602,2]
[330678153,1719703850801,-500.0,0.00016602,2]
[330678154,1719703850810,-414.37852674,0.00016602,2]
[330678155,1719703850820,-544.82,0.00016602,2]
[330678156,1719703850829,-627.17,0.00016602,2]
[330678157,1719703850839,-1520.05,0.00016602,2]
[330678158,1719703850849,-500.0,0.00016602,2]
[330678159,1719703850858,-500.0,0.00016602,2]
[330678160,1719703850868,-500.0,0.00016602,2]
[330678161,1719703850877,-1969.26,0.00016602,2]
[330678162,1719703850887,-511.63,0.00016602,2]
[330678163,1719703850897,-685.97,0.00016602,2]
[330678164,1719703850907,-685.97,0.00016602,2]
[330678165,1719703850916,-1565.08,0.00016602,2]
[330678166,1719703850925,-151.0,0.00016603,2]
[330678167,1719703850935,-27811.93,0.00016603,2]
[330678168,1719703850944,-849.56,0.00016603,2]
[330678169,1719703850953,-685.97,0.00016603,2]
[330678170,1719703850964,-685.97,0.00016603,2]
[330678171,1719703850973,-500.0,0.00016603,2]
[330678172,1719703850983,-879.85,0.00016603,2]
[330678173,1719703850992,-2644.28,0.00016604,2]
[330678174,1719703851001,-1216.44,0.00016604,2]
[330678175,1719703851011,-705.71,0.00016604,2]
[330678176,1719703851020,-871.7,0.00016604,2]
[330678177,1719703851029,-500.0,0.00016604,2]
[330678178,1719703851038,-500.0,0.00016604,2]
[330678179,1719703851049,-636.76,0.00016604,2]
[330678180,1719703851058,-500.0,0.00016604,2]
[330678181,1719703851068,-151.0,0.00016604,2]
[330678182,1719703851077,-500.0,0.00016604,2]
[330678183,1719703851087,-500.53,0.00016604,2]
[330678184,1719703851096,-330.91746075,0.00016604,2]
[330678185,1719703851104,-672.99,0.00016604,2]
[330678186,1719703851114,-901.68,0.00016604,2]
[330678187,1719703851123,-810.81,0.00016604,2]
[330678188,1719703851133,-500.0,0.00016604,2]
[330678189,1719703851143,-2023.12,0.00016604,2]
[330678190,1719703851152,-3305.08,0.00016604,2]
[330678191,1719703851162,-12130.36,0.00016604,2]
[330678192,1719703851172,-500.0,0.00016604,2]
[330678193,1719703851181,-2612.58,0.00016604,2]
[330678194,1719703851191,-2003.26,0.00016604,2]
[330678195,1719703851200,-500.0,0.00016604,2]
[330678196,1719703851210,-685.97,0.00016604,2]
[330678197,1719703851219,-23682.4,0.00016605,2]
[330678198,1719703851230,-500.0,0.00016608,2]
[330678199,1719703851240,-151.0,0.00016608,2]
[330678200,1719703851249,-685.97,0.00016706,2]
[330678201,1719703851260,-600.0,0.00016998,2]
[330678202,1719703851270,-773.0,0.00017028,2]
[330678203,1719703851280,-7630.83,0.00017142,2]
[330678204,1719703851289,-500.0,0.00017142,2]
[330678205,1719703851300,-2241.79,0.00017142,2]
[330678206,1719703851310,-5931.25,0.00017142,2]
[330678207,1719703851320,-500.0,0.00017142,2]
[330678208,1719703851329,-500.0,0.00017142,2]
[330678209,1719703851339,-522.38,0.00017142,2]
[330678210,1719703851348,-634.84,0.00017142,2]
[330678211,1719703851360,-33700.96,0.00017143,2]
[330678212,1719703851369,-5909.35,0.00017143,2]
[330678213,1719703851379,-9883.97,0.00017143,2]
[330678214,1719703851387,-3770.17,0.00017143,2]
[330678215,1719703851398,-500.0,0.00017143,2]
[330678216,1719703851407,-1559.8,0.00017143,2]
[330678217,1719703851416,-2204.73,0.00017143,2]
[330678218,1719703851426,-594.86,0.00017143,2]
[330678219,1719703851436,-9529.96,0.00017143,2]
[330678220,1719703851445,-8768.52,0.00017143,2]
[330678221,1719703851454,-4472.25,0.00017143,2]
[330678222,1719703851464,-781.23,0.00017143,2]
[330678223,1719703851473,-714.18,0.00017144,2]
[330678224,1719703851483,-500.0,0.00017144,2]
[330678225,1719703851492,-3302.31,0.00017144,2]
[330678226,1719703851502,-500.0,0.00017144,2]
[330678227,1719703851511,-500.0,0.00017144,2]
[330678228,1719703851520,-993.95,0.00017144,2]
[330678229,1719703851529,-804.04,0.00017144,2]
[330678230,1719703851539,-643.85,0.00017144,2]
[330678231,1719703851548,-500.0,0.00017144,2]
[330678232,1719703851558,-3863.48,0.00017144,2]
[330678233,1719703851569,-770.36,0.00017144,2]
[330678234,1719703851579,-15827.46,0.00017144,2]
[330678235,1719703851588,-645.98,0.00017144,2]
[330678236,1719703851598,-1168.57,0.00017144,2]
[330678237,1719703851607,-721.48,0.00017144,2]
[330678238,1719703851618,-3349.08,0.00017144,2]
[330678239,1719703851629,-4063.82,0.00017144,2]
[330678240,1719703851639,-874.08,0.00017144,2]
[330678241,1719703851649,-12879.18,0.00017144,2]
[330678242,1719703851659,-907.61,0.00017144,2]
[330678243,1719703851669,-798.1,0.00017144,2]
[330678244,1719703851679,-3466.91,0.00017144,2]
[330678245,1719703851689,-3902.08,0.00017144,2]
[330678246,1719703851701,-12655.29,0.00017144,2]
[330678247,1719703851710,-1065.2,0.00017144,2]
[330678248,1719703851720,-500.0,0.00017144,2]
[330678249,1719703851729,-1069.27,0.00017144,2]
[330678250,1719703851738,-500.0,0.00017144,2]
[330678251,1719703851747,-1325.41,0.00017144,2]
[330678252,1719703851757,-2108.69,0.00017144,2]
[330678253,1719703851766,-500.0,0.00017144,2]
[330678254,1719703851775,-1097.77,0.00017144,2]
[330678255,1719703851785,-500.0,0.00017144,2]
[330678256,1719703851795,-685.97,0.00017144,2]
[330678257,1719703851805,-685.97,0.00017144,2]
[330678258,1719703851815,-1463.4,0.00017144,2]
[330678259,1719703851824,-1360.5,0.00017144,2]
[330678260,1719703851835,-535.13,0.00017144,2]
[330678261,1719703851844,-1196.81,0.00017144,2]
[330678262,1719703851853,-1499.22,0.00017144,2]
[330678263,1719703851862,-956.93,0.00017144,2]
[330678264,1719703851871,-944.21,0.00017144,2]
[330678265,1719703851881,-2088.3,0.00017144,2]
[330678266,1719703851890,-648.43,0.00017144,2]
[330678267,1719703851900,-1864.07,0.00017144,2]
[330678268,1719703851909,-500.0,0.00017145,2]
[330678269,1719703851919,-750.47,0.00017145,2]
[330678270,1719703851928,-500.0,0.00017145,2]
[330678271,1719703851938,-300.97408697,0.00017145,2]
[330678272,1719703851947,-500.0,0.00017145,2]
[330678273,1719703851956,-991.1,0.00017145,2]
[330678274,1719703851966,-507.44,0.00017145,2]
[330678275,1719703851975,-500.0,0.00017145,2]
[330678276,1719703851985,-463.26668216,0.00017145,2]
[330678277,1719703851994,-500.0,0.00017145,2]
[330678278,1719703852003,-500.0,0.00017145,2]
[330678279,1719703852012,-500.0,0.00017145,2]
[330678280,1719703852022,-918.06,0.00017145,2]
[330678281,1719703852032,-500.0,0.00017145,2]
[330678282,1719703852041,-500.0,0.00017145,2]
[330678283,1719703852051,-659.59,0.00017145,2]
[330678284,1719703852061,-500.0,0.00017145,2]
[330678285,1719703852070,-500.0,0.00017145,2]
[330678286,1719703852079,-507.75147001,0.00017145,2]
[330678287,1719703852088,-500.0,0.00017145,2]
[330678288,1719703852097,-500.0,0.00017145,2]
[330678289,1719703852107,-785.55,0.00017145,2]
[330678290,1719703852116,-500.0,0.00017145,2]
[330678291,1719703852126,-500.0,0.00017145,2]
[330678292,1719703852135,-500.0,0.00017145,2]
[330678293,1719703852145,-500.0,0.00017145,2]
[330678294,1719703852155,-1424.95,0.00017145,2]
[330678295,1719703852164,-500.0,0.00017145,2]
[330678296,1719703852173,-164.47723864,0.00017145,2]
[330678297,1719703852183,-500.0,0.00017145,2]
[330678298,1719703852202,-500.0,0.00017145,2]
[330678299,1719703852214,-500.0,0.00017145,2]
[330678300,1719703852224,-615.57,0.00017145,2]
[330678301,1719703852235,-500.0,0.00017145,2]
[330678302,1719703852245,-500.0,0.00017145,2]
[330678303,1719703852255,-1508.99,0.00017145,2]
[330678304,1719703852265,-500.0,0.00017145,2]
[330678305,1719703852275,-500.0,0.00017145,2]
[330678306,1719703852285,-500.0,0.00017145,2]
[330678307,1719703852295,-151.0,0.00017145,2]
[330678308,1719703852305,-820.54,0.00017145,2]
[330678309,1719703852315,-1107.71,0.00017145,2]
[330678310,1719703852326,-500.0,0.00017145,2]
[330678311,1719703852336,-816.03,0.00017145,2]
[330678312,1719703852345,-500.0,0.00017145,2]
[330678313,1719703852358,-500.0,0.00017145,2]
[330678314,1719703852368,-653.07,0.00017145,2]
[330678315,1719703852378,-734.81,0.00017145,2]
[330678316,1719703852390,-500.0,0.00017145,2]
[330678317,1719703852399,-1802.19,0.00017145,2]
[330678318,1719703852530,-500.0,0.00017145,2]
[330678319,1719703852551,-703.49,0.00017145,2]
[330678320,1719703852561,-500.0,0.00017145,2]
[330678321,1719703852570,-670.12,0.00017145,2]
[330678322,1719703852579,-500.0,0.00017145,2]
[330678323,1719703852588,-500.0,0.00017145,2]
[330678324,1719703852598,-500.0,0.00017145,2]
[330678325,1719703852607,-667.36,0.00017145,2]
[330678326,1719703852618,-580.1,0.00017145,2]
[330678327,1719703852629,-500.0,0.00017145,2]
[330678328,1719703852638,-500.0,0.00017145,2]
[330678329,1719703852647,-1160.19,0.00017145,2]
[330678330,1719703852657,-674.11,0.00017145,2]
[330678331,1719703852667,-501.49,0.00017145,2]
[330678332,1719703852677,-500.0,0.00017145,2]
[330678333,1719703852687,-199.92683406,0.00017145,2]
[330678334,1719703852698,-2863.01342807,0.00017145,2]
[330678348,1719704238632,262.3278843,0.0001,2]
[330678351,1719704301515,2099.40710865,0.00012121,2]
[330678352,1719704306008,13386.27437388,0.00012121,2]
[330678353,1719704339205,402.58396579,0.00012121,2]
[330678354,1719704342437,906.09972588,0.00014692,2]
[330678366,1719704627659,374.18370226,0.00014999,2]
[330678372,1719704751933,10000.0,0.0001501,2]
[330678373,1719704768663,372.95744686,0.00014999,2]
[330678375,1719704788654,10000.0,0.0001501,2]
[330678381,1719704860000,1568.73091691,0.00014999,2]
[330678382,1719704869082,10000.0,0.0001501,2]
[330678384,1719704969229,-223.797191,0.00015062,2]
[330678385,1719704969259,-484.84356412,0.00015066,2]
[330678386,1719704969312,-708.64075512,0.00015066,2]
[330678387,1719704969349,-236.66162526,0.00015066,2]
[330678572,1719705038384,-549.6047263,0.00015091,2]
[330678573,1719705038393,-250.0,0.00015124,2]
[330678574,1719705038403,-682.3979462,0.0001521,2]
[330678575,1719705038412,-267.03265187,0.00016396,2]
[330678576,1719705038421,-1224.78742671,0.00016396,2]
[330678577,1719705038430,-267.03265183,0.00016421,2]
[330678578,1719705038440,-267.03265183,0.00016447,2]
[330678579,1719705038450,-267.03265183,0.00016472,2]
[330678580,1719705038459,-500.0,0.00016495,2]
[330678581,1719705038468,-500.0,0.00016495,2]
[330678582,1719705038477,-500.62,0.00016495,2]
[330678583,1719705038486,-500.0,0.00016495,2]
[330678584,1719705038495,-687.93,0.00016495,2]
[330678585,1719705038504,-500.0,0.00016495,2]
[330678586,1719705038513,-500.0,0.00016495,2]
[330678587,1719705038522,-908.51,0.00016495,2]
[330678588,1719705038531,-500.0,0.00016495,2]
[330678589,1719705038540,-500.0,0.00016495,2]
[330678590,1719705038551,-500.0,0.00016495,2]
[330678591,1719705038560,-500.0,0.00016495,2]
[330678592,1719705038570,-547.74493469,0.00016495,2]
[330678594,1719705038580,-500.0,0.00016495,2]
[330678596,1719705038590,-841.55,0.00016495,2]
[330678598,1719705038600,-500.0,0.00016495,2]
[330678600,1719705038610,-500.0,0.00016495,2]
[330678602,1719705038620,-500.0,0.00016495,2]
[330678604,1719705038630,-604.63,0.00016495,2]
[330678617,1719705038757,-7312.88,0.00016495,2]
[330678619,1719705038767,-500.0,0.00016495,2]
[330678621,1719705038777,-500.0,0.00016495,2]
[330678624,1719705038789,-720.09,0.00016495,2]
[330678626,1719705038798,-500.0,0.00016495,2]
[330678627,1719705038806,-500.0,0.00016495,2]
[330678629,1719705038816,-500.0,0.00016495,2]
[330678631,1719705038825,-500.0,0.00016495,2]
[330678633,1719705038835,-1306.2,0.00016495,2]
[330678635,1719705038844,-500.0,0.00016495,2]
[330678637,1719705038854,-2148.38,0.00016495,2]
[330678639,1719705038864,-500.0,0.00016495,2]
[330678641,1719705038873,-5684.12,0.00016495,2]
[330678643,1719705038882,-500.0,0.00016495,2]